fUST/lending_fUST_20250827
["ID","MTS","AMOUNT","RATE_DAILY","PERIOD"]
[381631591,1756299131757,-480.0,0.00025205,2]
[381631592,1756299131767,-561.06,0.00025205,2]
[381631593,1756299131778,-544.78,0.00025205,2]
[381631594,1756299131788,-655.34,0.00025205,2]
[381631595,1756299131798,-660.63,0.00025205,2]
[381631596,1756299131807,-935.85,0.00025205,2]
[381631597,1756299131817,-1338.48,0.00025205,2]
[381631598,1756299131827,-480.0,0.00025205,2]
[381631599,1756299131837,-651.24,0.00025205,2]
[381631600,1756299131846,-480.0,0.00025205,2]
[381631601,1756299131856,-1057.73,0.00025205,2]
[381631602,1756299131865,-761.3,0.00025205,2]
[381631603,1756299131875,-631.68,0.00025205,2]
[381631604,1756299131884,-520.4,0.00025205,2]
[381631605,1756299131894,-628.89,0.00025205,2]
[381631606,1756299131903,-775.56,0.00025205,2]
[381631607,1756299131913,-733.13,0.00025205,2]
[381631608,1756299131923,-480.0,0.00025205,2]
[381631609,1756299131932,-1793.19,0.00025205,2]
[381631610,1756299131942,-480.0,0.00025205,2]
[381631611,1756299131951,-1312.96,0.00025205,2]
[381631612,1756299131961,-480.0,0.00025205,2]
[381631613,1756299131970,-480.0,0.00025205,2]
[381631614,1756299131980,-594.15,0.00025205,2]
[381631615,1756299131991,-628.83,0.00025205,2]
[381631616,1756299132002,-480.0,0.00025205,2]
[381631617,1756299132011,-480.0,0.00025205,2]
[381631618,1756299132021,-480.0,0.00025205,2]
[381631619,1756299132030,-902.71,0.00025205,2]
[381631620,1756299132040,-591.53,0.00025205,2]
[381631621,1756299132050,-480.0,0.00025205,2]
[381631622,1756299132060,-480.0,0.00025205,2]
[381631623,1756299132071,-818.78,0.00025205,2]
[381631624,1756299132082,-480.0,0.00025205,2]
[381631625,1756299132091,-858.98,0.00025205,2]
[381631626,1756299132100,-217.89953692,0.00025205,2]
[381631627,1756299132110,-746.51,0.00025205,2]
[381631628,1756299132119,-480.0,0.00025205,2]
[381631629,1756299132128,-480.0,0.00025205,2]
[381631630,1756299132138,-625.32,0.00025205,2]
[381631631,1756299132148,-1365.1,0.00025205,2]
[381631632,1756299132158,-480.0,0.00025205,2]
[381631633,1756299132168,-480.0,0.00025205,2]
[381631634,1756299132177,-624.5,0.00025205,2]
[381631635,1756299132187,-497.34,0.00025205,2]
[381631636,1756299132197,-1152.04,0.00025205,2]
[381631637,1756299132207,-579.93,0.00025205,2]
[381631638,1756299132217,-599.34,0.00025205,2]
[381631639,1756299132226,-2015.87,0.00025205,2]
[381631640,1756299132235,-810.1,0.00025205,2]
[381631641,1756299132244,-793.74,0.00025205,2]
[381631642,1756299132253,-1099.58,0.00025205,2]
[381631643,1756299132263,-480.0,0.00025205,2]
[381631644,1756299132272,-430.42016696,0.00025205,2]
[381631645,1756299132282,-480.0,0.00025205,2]
[381631646,1756299132291,-470.18249791,0.00025205,2]
[381631647,1756299132300,-736.43,0.00025205,2]
[381631648,1756299132310,-1838.61,0.00025205,2]
[381631649,1756299132320,-898.68,0.00025205,2]
[381631650,1756299132329,-480.0,0.00025205,2]
[381631651,1756299132339,-480.0,0.00025205,2]
[381631652,1756299132349,-916.71,0.00025205,2]
[381631653,1756299132359,-480.0,0.00025205,2]
[381631654,1756299132369,-480.0,0.00025205,2]
[381631655,1756299132378,-480.0,0.00025205,2]
[381631656,1756299132388,-521.43,0.00025205,2]
[381631657,1756299132399,-480.0,0.00025205,2]
[381631658,1756299132409,-539.62,0.00025205,2]
[381631659,1756299132419,-727.24,0.00025205,2]
[381631660,1756299132430,-480.0,0.00025205,2]
[381631661,1756299132440,-1170.25,0.00025205,2]
[381631662,1756299132450,-909.76,0.00025205,2]
[381631663,1756299132460,-1026.14,0.00025205,2]
[381631664,1756299132470,-480.0,0.00025205,2]
[381631665,1756299132479,-711.06,0.00025205,2]
[381631666,1756299132489,-1249.43,0.00025205,2]
[381631667,1756299132498,-962.75,0.00025205,2]
[381631668,1756299132508,-480.0,0.00025205,2]
[381631669,1756299132518,-262.70740633,0.00025205,2]
[381631670,1756299132527,-480.0,0.00025205,2]
[381631671,1756299132537,-480.0,0.00025205,2]
[381631672,1756299132547,-670.56,0.00025205,2]
[381631673,1756299132557,-780.75,0.00025205,2]
[381631674,1756299132566,-480.0,0.00025205,2]
[381631675,1756299132576,-633.62,0.00025205,2]
[381631676,1756299132585,-638.03,0.00025205,2]
[381631677,1756299132595,-480.0,0.00025205,2]
[381631678,1756299132605,-886.17,0.00025205,2]
[381631679,1756299132614,-1346.67,0.00025205,2]
[381631680,1756299132624,-677.64,0.00025205,2]
[381631681,1756299132634,-480.0,0.00025205,2]
[381631682,1756299132643,-480.0,0.00025205,2]
[381631683,1756299132653,-480.0,0.00025205,2]
[381631684,1756299132663,-741.13,0.00025205,2]
[381631685,1756299132673,-952.53,0.00025205,2]
[381631686,1756299132682,-248.01080789,0.00025205,2]
[381631687,1756299132694,-516.12417519,0.00025205,2]
[381631688,1756299132706,-635.74,0.00025205,2]
[381631689,1756299132716,-480.0,0.00025205,2]
[381631690,1756299132726,-574.03,0.00025205,2]
[381631691,1756299132735,-508.7,0.00025205,2]
[381631692,1756299132745,-687.48,0.00025205,2]
[381631693,1756299132755,-1268.98,0.00025205,2]
[381631694,1756299132764,-538.35907122,0.00025205,2]
[381631695,1756299132774,-856.71,0.00025205,2]
[381631696,1756299132783,-480.0,0.00025205,2]
[381631697,1756299132793,-6495.25,0.00025205,2]
[381631698,1756299132803,-636.86,0.00025205,2]
[381631699,1756299132812,-521.2929728,0.00025205,2]
[381631700,1756299132822,-486.07,0.00025205,2]
[381631701,1756299132832,-524.69,0.00025205,2]
[381631702,1756299132841,-480.0,0.00025205,2]
[381631703,1756299132852,-1458.92,0.00025205,2]
[381631704,1756299132861,-905.99,0.00025205,2]
[381631705,1756299132871,-837.39,0.00025205,2]
[381631706,1756299132880,-624.44,0.00025205,2]
[381631707,1756299132890,-1847.92,0.00025205,2]
[381631708,1756299132900,-771.49,0.00025205,2]
[381631709,1756299132909,-1529.63,0.00025205,2]
[381631710,1756299132919,-8247.96,0.00025205,2]
[381631711,1756299132928,-3400.62,0.00025205,2]
[381631712,1756299132938,-583.48,0.00025205,2]
[381631713,1756299132948,-480.0,0.00025205,2]
[381631714,1756299132958,-480.0,0.00025205,2]
[381631715,1756299132969,-480.0,0.00025205,2]
[381631716,1756299132978,-1076.84,0.00025205,2]
[381631717,1756299132988,-1635.61,0.00025205,2]
[381631718,1756299132997,-564.33,0.00025205,2]
[381631719,1756299133007,-480.0,0.00025205,2]
[381631720,1756299133017,-740.19,0.00025205,2]
[381631721,1756299133027,-1200.96,0.00025205,2]
[381631722,1756299133037,-1559.95,0.00025205,2]
[381631723,1756299133047,-1003.43,0.00025205,2]
[381631724,1756299133057,-480.0,0.00025205,2]
[381631725,1756299133067,-655.25,0.00025205,2]
[381631726,1756299133077,-1004.24,0.00025205,2]
[381631727,1756299133086,-1160.02,0.00025205,2]
[381631728,1756299133096,-626.39,0.00025205,2]
[381631729,1756299133106,-504.38,0.00025205,2]
[381631730,1756299133116,-748.48,0.00025205,2]
[381631731,1756299133125,-376.32220735,0.00025205,2]
[381631732,1756299133134,-868.0,0.00025205,2]
[381631733,1756299133144,-632.12,0.00025205,2]
[381631734,1756299133153,-656.18,0.00025205,2]
[381631735,1756299133163,-480.0,0.00025205,2]
[381631736,1756299133173,-480.0,0.00025205,2]
[381631737,1756299133182,-515.28,0.00025205,2]
[381631738,1756299133192,-639.39,0.00025205,2]
[381631739,1756299133201,-860.92,0.00025205,2]
[381631740,1756299133211,-707.77,0.00025205,2]
[381631741,1756299133220,-1553.38,0.00025205,2]
[381631742,1756299133230,-480.0,0.00025205,2]
[381631743,1756299133240,-507.0,0.00025205,2]
[381631744,1756299133250,-621.34,0.00025205,2]
[381631745,1756299133259,-480.0,0.00025205,2]
[381631746,1756299133267,-961.78,0.00025205,2]
[381631747,1756299133276,-480.0,0.00025205,2]
[381631748,1756299133284,-2093.04,0.00025205,2]
[381631749,1756299133293,-481.67,0.00025205,2]
[381631750,1756299133301,-861.82,0.00025205,2]
[381631751,1756299133310,-906.46,0.00025205,2]
[381631752,1756299133320,-480.0,0.00025205,2]
[381631753,1756299133329,-500.0,0.00025205,2]
[381631754,1756299133338,-1944.4,0.00025205,2]
[381631755,1756299133349,-480.0,0.00025205,2]
[381631756,1756299133357,-480.0,0.00025205,2]
[381631757,1756299133368,-756.21,0.00025205,2]
[381631758,1756299133377,-691.47,0.00025205,2]
[381631759,1756299133387,-507.46530895,0.00025205,2]
[381631760,1756299133396,-669.41,0.00025205,2]
[381631761,1756299133406,-822.12,0.00025205,2]
[381631762,1756299133417,-664.01,0.00025205,2]
[381631763,1756299133427,-5734.46,0.00025205,2]
[381631764,1756299133436,-480.0,0.00025205,2]
[381631765,1756299133446,-480.0,0.00025205,2]
[381631766,1756299133456,-480.0,0.00025205,2]
[381631767,1756299133466,-1472.58,0.00025205,2]
[381631768,1756299133476,-480.0,0.00025205,2]
[381631769,1756299133486,-480.0,0.00025205,2]
[381631770,1756299133496,-1010.62,0.00025205,2]
[381631771,1756299133506,-746.58,0.00025205,2]
[381631772,1756299133517,-945.67,0.00025205,2]
[381631773,1756299133528,-820.03,0.00025205,2]
[381631774,1756299133537,-2419.42,0.00025205,2]
[381631775,1756299133547,-2003.06,0.00025205,2]
[381631776,1756299133557,-712.33,0.00025205,2]
[381631777,1756299133566,-632.8,0.00025205,2]
[381631778,1756299133576,-1302.43,0.00025205,2]
[381631779,1756299133586,-879.19,0.00025205,2]
[381631780,1756299133596,-626.24,0.00025205,2]
[381631781,1756299133606,-2358.04,0.00025205,2]
[381631782,1756299133616,-571.94,0.00025205,2]
[381631783,1756299133702,-1028.29,0.00025205,2]
[381631784,1756299133713,-480.0,0.00025205,2]
[381631785,1756299133723,-760.04,0.00025205,2]
[381631786,1756299133733,-480.0,0.00025205,2]
[381631787,1756299133743,-534.07,0.00025205,2]
[381631788,1756299133752,-480.0,0.00025205,2]
[381631789,1756299133762,-773.62,0.00025205,2]
[381631790,1756299133772,-480.0,0.00025205,2]
[381631791,1756299133781,-480.0,0.00025205,2]
[381631792,1756299133791,-579.37,0.00025205,2]
[381631793,1756299133801,-481.34,0.00025205,2]
[381631794,1756299133810,-480.0,0.00025205,2]
[381631795,1756299133820,-689.04,0.00025205,2]
[381631796,1756299133829,-558.49,0.00025205,2]
[381631797,1756299133839,-3533.68,0.00025205,2]
[381631798,1756299133848,-480.0,0.00025205,2]
[381631799,1756299133857,-368.05771639,0.00025205,2]
[381631800,1756299133867,-877.94,0.00025205,2]
[381631801,1756299133876,-657.92,0.00025205,2]
[381631802,1756299133885,-1078.58,0.00025205,2]
[381631803,1756299133895,-541.91,0.00025205,2]
[381631804,1756299133905,-680.84,0.00025205,2]
[381631805,1756299133914,-1306.03,0.00025205,2]
[381631806,1756299133923,-4136.98,0.00025205,2]
[381631807,1756299133932,-480.0,0.00025205,2]
[381631808,1756299133942,-611.17,0.00025205,2]
[381631809,1756299133952,-1546.75,0.00025205,2]
[381631810,1756299133962,-745.97,0.00025205,2]
[381631811,1756299133971,-483.6,0.00025205,2]
[381631812,1756299133981,-1237.23,0.00025205,2]
[381631813,1756299133990,-2253.99,0.00025205,2]
[381631814,1756299133999,-4927.91,0.00025205,2]
[381631815,1756299134008,-480.0,0.00025205,2]
[381631816,1756299134018,-727.85,0.00025205,2]
[381631817,1756299134027,-681.98,0.00025205,2]
[381631818,1756299134037,-711.45,0.00025205,2]
[381631819,1756299134047,-2444.85,0.00025205,2]
[381631820,1756299134056,-1897.45,0.00025205,2]
[381631821,1756299134066,-2263.07,0.00025205,2]
[381631822,1756299134075,-4617.09,0.00025205,2]
[381631823,1756299134085,-1837.84,0.00025205,2]
[381631824,1756299134094,-480.0,0.00025205,2]
[381631825,1756299134104,-867.08,0.00025205,2]
[381631826,1756299134113,-480.0,0.00025205,2]
[381631827,1756299134122,-1079.7,0.00025205,2]
[381631828,1756299134131,-2907.91,0.00025205,2]
[381631829,1756299134141,-480.0,0.00025205,2]
[381631830,1756299134150,-1354.76,0.00025205,2]
[381631831,1756299134160,-2286.82,0.00025205,2]
[381631832,1756299134169,-576.96,0.00025205,2]
[381631833,1756299134178,-480.0,0.00025205,2]
[381631834,1756299134187,-1707.9,0.00025205,2]
[381631835,1756299134197,-812.92,0.00025205,2]
[381631836,1756299134205,-480.0,0.00025205,2]
[381631837,1756299134214,-739.93,0.00025205,2]
[381631838,1756299134224,-1062.67,0.00025205,2]
[381631839,1756299134233,-3535.34,0.00025205,2]
[381631840,1756299134242,-679.72,0.00025205,2]
[381631841,1756299134251,-550.73,0.00025205,2]
[381631842,1756299134261,-695.89,0.00025205,2]
[381631843,1756299134270,-577.42,0.00025205,2]
[381631844,1756299134280,-680.83,0.00025205,2]
[381631845,1756299134289,-600.93,0.00025205,2]
[381631846,1756299134298,-829.46,0.00025205,2]
[381631847,1756299134307,-1995.59,0.00025205,2]
[381631848,1756299134317,-1631.46,0.00025205,2]
[381631849,1756299134327,-1590.45,0.00025205,2]
[381631850,1756299134337,-194.03894444,0.00025205,2]
[381631851,1756299134346,-539.05,0.00025205,2]
[381631852,1756299134356,-712.28,0.00025205,2]
[381631853,1756299134365,-638.72,0.00025205,2]
[381631854,1756299134375,-266.71,0.00025205,2]
[381631855,1756299134384,-480.0,0.00025205,2]
[381631856,1756299134393,-480.0,0.00025205,2]
[381631857,1756299134403,-755.02,0.00025205,2]
[381631858,1756299134412,-480.0,0.00025205,2]
[381631859,1756299134421,-789.18,0.00025205,2]
[381631860,1756299134430,-480.0,0.00025205,2]
[381631861,1756299134439,-685.55,0.00025205,2]
[381631862,1756299134448,-2224.28,0.00025205,2]
[381631863,1756299134457,-480.0,0.00025205,2]
[381631864,1756299134466,-622.18,0.00025205,2]
[381631865,1756299134475,-1015.89,0.00025205,2]
[381631866,1756299134484,-480.0,0.00025205,2]
[381631867,1756299134493,-1801.64,0.00025205,2]
[381631868,1756299134503,-631.08,0.00025205,2]
[381631869,1756299134514,-678.47,0.00025205,2]
[381631870,1756299134523,-407.21055558,0.00025205,2]
[381631871,1756299134533,-908.23,0.00025205,2]
[381631872,1756299134542,-698.69,0.00025205,2]
[381631873,1756299134552,-2888.9,0.00025205,2]
[381631875,1756299134561,-480.0,0.00025205,2]
[381631876,1756299134571,-480.0,0.00025205,2]
[381631877,1756299134582,-901.06,0.00025205,2]
[381631878,1756299134592,-480.0,0.00025205,2]
[381631879,1756299134602,-480.0,0.00025205,2]
[381631880,1756299134611,-1290.3,0.00025205,2]
[381631881,1756299134621,-1110.35,0.00025205,2]
[381631882,1756299134631,-911.51,0.00025205,2]
[381631883,1756299134640,-711.28,0.00025205,2]
[381631884,1756299134649,-250.0,0.00025205,2]
[381631885,1756299134658,-750.0,0.00025205,2]
[381631886,1756299134667,-500.0,0.00025206,2]
[381631887,1756299134677,-3000.0,0.0002521,2]
[381631888,1756299134687,-1661.55,0.00025211,14]
[381631889,1756299134700,-8933.95,0.00025211,14]
[381631890,1756299134710,-3000.0,0.0002522,2]
[381631891,1756299134719,-3000.0,0.0002523,2]
[381631892,1756299134728,-3000.0,0.0002524,2]
[381631893,1756299134738,-3000.0,0.0002525,2]
[381631894,1756299134747,-3000.0,0.0002526,2]
[381631895,1756299134756,-3000.0,0.0002527,2]
[381631896,1756299134766,-3000.0,0.0002528,2]
[381631897,1756299134776,-485.0,0.00025286,2]
[381631898,1756299134785,-3000.0,0.0002529,2]
[381631899,1756299134795,-3000.0,0.000253,2]
[381631900,1756299134804,-3000.0,0.0002531,2]
[381631901,1756299134814,-3000.0,0.0002532,2]
[381631902,1756299134823,-168.0,0.00025323,2]
[381631903,1756299134833,-5246.759806,0.0002533,2]
[381631904,1756299134844,-217.15233878,0.00025348,2]
[381631905,1756299134853,-168.0,0.00025405,2]
[381631906,1756299134862,-485.0,0.00025437,2]
[381631907,1756299134872,-864.0,0.00025447,20]
[381631908,1756299134881,-1015.0,0.00025476,2]
[381631909,1756299134890,-507.07648934,0.00025479,2]
[381631910,1756299134899,-480.0,0.00025479,2]
[381631911,1756299134909,-480.0,0.00025479,2]
[381631912,1756299134919,-480.0,0.00025479,2]
[381631913,1756299134927,-480.0,0.00025479,2]
[381631914,1756299134938,-493.86,0.00025479,2]
[381631915,1756299134949,-493.53668926,0.00025479,2]
[381631916,1756299134959,-480.0,0.00025479,2]
[381631917,1756299134969,-562.7,0.00025479,2]
[381631918,1756299134978,-524.95,0.00025479,2]
[381631919,1756299134988,-480.0,0.00025479,2]
[381631920,1756299134997,-538.52,0.00025479,2]
[381631921,1756299135007,-550.62,0.00025479,2]
[381631922,1756299135017,-480.0,0.00025479,2]
[381631923,1756299135026,-576.16,0.00025479,2]
[381631924,1756299135035,-662.66,0.00025479,2]
[381631925,1756299135044,-582.51,0.00025479,2]
[381631926,1756299135053,-480.0,0.00025479,2]
[381631927,1756299135063,-500.0,0.00025479,2]
[381631928,1756299135071,-480.0,0.00025479,2]
[381631929,1756299135081,-480.0,0.00025479,2]
[381631930,1756299135091,-606.2,0.00025479,2]
[381631931,1756299135100,-706.9,0.00025479,2]
[381631932,1756299135110,-480.0,0.00025479,2]
[381631933,1756299135120,-882.63,0.00025479,2]
[381631934,1756299135130,-480.0,0.00025479,2]
[381631935,1756299135139,-714.33,0.00025479,2]
[381631936,1756299135148,-612.47,0.00025479,2]
[381631937,1756299135158,-480.0,0.00025479,2]
[381631938,1756299135167,-480.0,0.00025479,2]
[381631939,1756299135176,-480.0,0.00025479,2]
[381631940,1756299135186,-480.0,0.00025479,2]
[381631941,1756299135195,-480.0,0.00025479,2]
[381631942,1756299135206,-512.19,0.00025479,2]
[381631943,1756299135215,-509.06,0.00025479,2]
[381631944,1756299135226,-612.82,0.00025479,2]
[381631945,1756299135235,-627.14,0.00025479,2]
[381631946,1756299135244,-624.19,0.00025479,2]
[381631947,1756299135254,-481.22,0.00025479,2]
[381631948,1756299135263,-528.91,0.00025479,2]
[381631949,1756299135273,-608.41,0.00025479,2]
[381631950,1756299135282,-547.44,0.00025479,2]
[381631951,1756299135292,-480.0,0.00025479,2]
[381631952,1756299135301,-967.44,0.00025479,2]
[381631953,1756299135311,-522.91,0.00025479,2]
[381631954,1756299135320,-486.45,0.00025479,2]
[381631955,1756299135329,-624.58,0.00025479,2]
[381631956,1756299135339,-480.0,0.00025479,2]
[381631957,1756299135348,-480.0,0.00025479,2]
[381631958,1756299135359,-480.0,0.00025479,2]
[381631959,1756299135368,-1513.62,0.00025479,2]
[381631960,1756299135378,-740.6,0.00025479,2]
[381631961,1756299135388,-1456.95,0.00025479,2]
[381631962,1756299135398,-561.33,0.00025479,2]
[381631963,1756299135407,-480.0,0.00025479,2]
[381631964,1756299135416,-1610.42,0.00025479,2]
[381631965,1756299135426,-507.15,0.00025479,2]
[381631966,1756299135435,-480.0,0.00025479,2]
[381631967,1756299135444,-628.11,0.00025479,2]
[381631968,1756299135456,-569.45,0.00025479,2]
[381631969,1756299135466,-480.0,0.00025479,2]
[381631970,1756299135476,-1196.37,0.00025479,2]
[381631971,1756299135486,-1184.81,0.00025479,2]
[381631972,1756299135495,-480.0,0.00025479,2]
[381631973,1756299135505,-595.51,0.00025479,2]
[381631974,1756299135515,-974.71,0.00025479,2]
[381631975,1756299135524,-680.85,0.00025479,2]
[381631976,1756299135533,-642.37,0.00025479,2]
[381631977,1756299135544,-480.0,0.00025479,2]
[381631978,1756299135554,-480.0,0.00025479,2]
[381631979,1756299135564,-620.04,0.00025479,2]
[381631980,1756299135573,-1799.04,0.00025479,2]
[381631981,1756299135582,-888.29,0.00025479,2]
[381631982,1756299135592,-511.13,0.00025479,2]
[381631983,1756299135602,-615.79,0.00025479,2]
[381631984,1756299135611,-837.84,0.00025479,2]
[381631985,1756299135620,-1249.5,0.00025479,2]
[381631986,1756299135630,-488.18,0.00025479,2]
[381631987,1756299135639,-480.0,0.00025479,2]
[381631988,1756299135647,-841.78,0.00025479,2]
[381631989,1756299135657,-818.54,0.00025479,2]
[381631990,1756299135666,-634.58,0.00025479,2]
[381631991,1756299135676,-480.0,0.00025479,2]
[381631992,1756299135685,-480.0,0.00025479,2]
[381631993,1756299135701,-1132.23,0.00025479,2]
[381631994,1756299135711,-480.0,0.00025479,2]
[381631995,1756299135720,-480.0,0.00025479,2]
[381631996,1756299135730,-630.18,0.00025479,2]
[381631997,1756299135743,-1020.11,0.00025479,2]
[381631998,1756299135752,-987.21,0.00025479,2]
[381631999,1756299135764,-480.0,0.00025479,2]
[381632000,1756299135782,-480.0,0.00025479,2]
[381632001,1756299135791,-480.0,0.00025479,2]
[381632002,1756299135801,-561.06,0.00025479,2]
[381632003,1756299135811,-544.78,0.00025479,2]
[381632004,1756299135820,-655.34,0.00025479,2]
[381632005,1756299135829,-660.63,0.00025479,2]
[381632006,1756299135838,-935.85,0.00025479,2]
[381632007,1756299135848,-1338.48,0.00025479,2]
[381632008,1756299135858,-480.0,0.00025479,2]
[381632009,1756299135867,-651.24,0.00025479,2]
[381632010,1756299135877,-480.0,0.00025479,2]
[381632011,1756299135887,-761.3,0.00025479,2]
[381632012,1756299135897,-631.68,0.00025479,2]
[381632013,1756299135906,-520.4,0.00025479,2]
[381632014,1756299135916,-628.89,0.00025479,2]
[381632015,1756299135925,-1057.73,0.00025479,2]
[381632016,1756299135935,-733.13,0.00025479,2]
[381632017,1756299135945,-775.56,0.00025479,2]
[381632018,1756299135956,-480.0,0.00025479,2]
[381632019,1756299135965,-1793.19,0.00025479,2]
[381632020,1756299135975,-480.0,0.00025479,2]
[381632021,1756299135984,-1312.96,0.00025479,2]
[381632022,1756299135994,-480.0,0.00025479,2]
[381632023,1756299136004,-480.0,0.00025479,2]
[381632024,1756299136014,-594.15,0.00025479,2]
[381632025,1756299136024,-628.83,0.00025479,2]
[381632026,1756299136033,-480.0,0.00025479,2]
[381632027,1756299136044,-480.0,0.00025479,2]
[381632028,1756299136054,-902.71,0.00025479,2]
[381632029,1756299136063,-591.53,0.00025479,2]
[381632030,1756299136073,-480.0,0.00025479,2]
[381632031,1756299136082,-818.78,0.00025479,2]
[381632032,1756299136091,-480.0,0.00025479,2]
[381632033,1756299136104,-858.98,0.00025479,2]
[381632034,1756299136113,-746.51,0.00025479,2]
[381632035,1756299136123,-480.0,0.00025479,2]
[381632036,1756299136133,-480.0,0.00025479,2]
[381632037,1756299136143,-625.32,0.00025479,2]
[381632038,1756299136153,-1365.1,0.00025479,2]
[381632039,1756299136164,-480.0,0.00025479,2]
[381632040,1756299136174,-480.0,0.00025479,2]
[381632041,1756299136183,-624.5,0.00025479,2]
[381632042,1756299136193,-1152.04,0.00025479,2]
[381632043,1756299136204,-599.34,0.00025479,2]
[381632044,1756299136213,-579.93,0.00025479,2]
[381632045,1756299136223,-2015.87,0.00025479,2]
[381632046,1756299136232,-810.1,0.00025479,2]
[381632047,1756299136242,-793.74,0.00025479,2]
[381632048,1756299136252,-1099.58,0.00025479,2]
[381632049,1756299136261,-480.0,0.00025479,2]
[381632050,1756299136271,-480.0,0.00025479,2]
[381632051,1756299136280,-736.43,0.00025479,2]
[381632052,1756299136290,-1838.61,0.00025479,2]
[381632053,1756299136299,-898.68,0.00025479,2]
[381632054,1756299136309,-480.0,0.00025479,2]
[381632055,1756299136318,-480.0,0.00025479,2]
[381632056,1756299136327,-916.71,0.00025479,2]
[381632057,1756299136338,-480.0,0.00025479,2]
[381632058,1756299136347,-480.0,0.00025479,2]
[381632059,1756299136357,-480.0,0.00025479,2]
[381632060,1756299136367,-521.43,0.00025479,2]
[381632061,1756299136377,-480.0,0.00025479,2]
[381632062,1756299136386,-539.62,0.00025479,2]
[381632063,1756299136396,-727.24,0.00025479,2]
[381632064,1756299136406,-480.0,0.00025479,2]
[381632065,1756299136416,-1170.25,0.00025479,2]
[381632066,1756299136426,-909.76,0.00025479,2]
[381632067,1756299136435,-1026.14,0.00025479,2]
[381632068,1756299136445,-225.35172686,0.00025479,2]
[381632069,1756299136456,-1249.43,0.00025479,2]
[381632070,1756299136466,-711.06,0.00025479,2]
[381632071,1756299136476,-480.0,0.00025479,2]
[381632072,1756299136486,-962.75,0.00025479,2]
[381632073,1756299136496,-480.0,0.00025479,2]
[381632074,1756299136505,-480.0,0.00025479,2]
[381632075,1756299136515,-670.56,0.00025479,2]
[381632076,1756299136526,-780.75,0.00025479,2]
[381632077,1756299136535,-480.0,0.00025479,2]
[381632078,1756299136545,-633.62,0.00025479,2]
[381632079,1756299136554,-638.03,0.00025479,2]
[381632080,1756299136564,-480.0,0.00025479,2]
[381632081,1756299136574,-886.17,0.00025479,2]
[381632082,1756299136583,-1346.67,0.00025479,2]
[381632083,1756299136593,-677.64,0.00025479,2]
[381632084,1756299136604,-480.0,0.00025479,2]
[381632085,1756299136614,-480.0,0.00025479,2]
[381632086,1756299136623,-480.0,0.00025479,2]
[381632087,1756299136633,-741.13,0.00025479,2]
[381632088,1756299136643,-952.53,0.00025479,2]
[381632089,1756299136653,-635.74,0.00025479,2]
[381632090,1756299136663,-480.0,0.00025479,2]
[381632091,1756299136673,-574.03,0.00025479,2]